fUST/lending_fUST_20241127
["ID","MTS","AMOUNT","RATE_DAILY","PERIOD"]
[343554635,1732720040780,-500.0,0.00024673,2]
[343554636,1732720040805,-195.88025,0.00024701,2]
[343554637,1732720040834,-1603.23096965,0.0002485,2]
[343554638,1732720040861,-195.88025,0.00024925,2]
[343554639,1732720040888,-302.69733596,0.00025,2]
[343554640,1732720041218,427.38575376,0.00021977,2]
[343554641,1732720041256,500.0,0.00024657,3]
[343554642,1732720041287,500.0,0.00024657,3]
[343554643,1732720041318,500.0,0.00024657,3]
[343554644,1732720041350,500.0,0.00024657,3]
[343554645,1732720041380,500.0,0.00024657,3]
[343554646,1732720041411,500.0,0.00024657,3]
[343554647,1732720041442,500.0,0.00024657,3]
[343554648,1732720041474,500.0,0.00024657,3]
[343554649,1732720041509,500.0,0.00024657,3]
[343554650,1732720041539,500.0,0.00024657,3]
[343554651,1732720041572,500.0,0.00024657,3]
[343554652,1732720042610,-390.8520285,0.00024557,2]
[343554653,1732720042632,-300.0,0.00024656,2]
[343554654,1732720042658,-300.0,0.00024656,2]
[343554655,1732720042680,-992.76808718,0.00024656,2]
[343554656,1732720042717,-22071.23191282,0.00024656,2]
[343554657,1732720042741,-503.04952623,0.00024657,3]
[343554658,1732720042762,-500.0,0.00024657,3]
[343554659,1732720042783,-500.0,0.00024657,3]
[343554660,1732720042804,-500.0,0.00024657,3]
[343554661,1732720042825,-500.0,0.00024657,3]
[343554662,1732720042846,-500.0,0.00024657,3]
[343554663,1732720042867,-593.3,0.00024657,3]
[343554664,1732720042888,-500.0,0.00024657,3]
[343554665,1732720042911,-504.80146684,0.00024657,3]
[343554666,1732720042932,-500.0,0.00024657,3]
[343554667,1732720042954,-500.0,0.00024657,3]
[343554668,1732720042976,-500.0,0.00024657,3]
[343554669,1732720042999,-500.0,0.00024657,3]
[343554670,1732720043020,-500.0,0.00024657,3]
[343554671,1732720043041,-500.0,0.00024657,3]
[343554672,1732720043064,-500.0,0.00024657,3]
[343554673,1732720043086,-500.0,0.00024657,3]
[343554674,1732720043109,-500.0,0.00024657,3]
[343554675,1732720043130,-500.0,0.00024657,3]
[343554676,1732720043153,-500.0,0.00024657,3]
[343554677,1732720043176,-500.0,0.00024657,3]
[343554678,1732720043199,-500.0,0.00024657,3]
[343554679,1732720043227,-500.0,0.00024657,3]
[343554680,1732720043254,-500.0,0.00024657,3]
[343554681,1732720043276,-228.678336,0.00024657,3]
[343554682,1732720043299,-500.0,0.00024657,3]
[343554683,1732720043321,-500.0,0.00024657,3]
[343554684,1732720043343,-500.0,0.00024657,3]
[343554685,1732720043366,-500.0,0.00024657,3]
[343554686,1732720043388,-500.0,0.00024657,3]
[343554687,1732720043411,-500.0,0.00024657,3]
[343554688,1732720043434,-500.0,0.00024657,3]
[343554689,1732720043456,-500.0,0.00024657,3]
[343554690,1732720043478,-500.0,0.00024657,3]
[343554691,1732720043503,-500.0,0.00024657,3]
[343554692,1732720043523,-500.0,0.00024657,3]
[343554693,1732720043545,-500.0,0.00024657,3]
[343554694,1732720043567,-500.0,0.00024657,3]
[343554695,1732720043588,-500.0,0.00024657,3]
[343554696,1732720043610,-500.0,0.00024657,3]
[343554697,1732720043631,-500.0,0.00024657,3]
[343554698,1732720043655,-500.0,0.00024657,3]
[343554699,1732720043676,-500.0,0.00024657,3]
[343554700,1732720043697,-597.49,0.00024657,3]
[343554701,1732720043718,-500.0,0.00024657,3]
[343554702,1732720043743,-500.0,0.00024657,3]
[343554703,1732720043763,-500.0,0.00024657,3]
[343554704,1732720043784,-500.0,0.00024657,3]
[343554705,1732720043807,-500.0,0.00024657,3]
[343554706,1732720043830,-500.0,0.00024657,3]
[343554707,1732720043850,-500.0,0.00024657,3]
[343554708,1732720043873,-163.44644943,0.00024657,3]
[343554709,1732720043896,-500.0,0.00024657,3]
[343554710,1732720043915,-534.36241641,0.00024657,3]
[343554711,1732720043935,-500.0,0.00024657,3]
[343554712,1732720043956,-500.0,0.00024657,3]
[343554713,1732720043978,-500.0,0.00024657,3]
[343554714,1732720044004,-500.0,0.00024657,3]
[343554715,1732720044025,-406.42002438,0.00024657,3]
[343554716,1732720044045,-500.0,0.00024657,3]
[343554717,1732720044066,-500.0,0.00024657,3]
[343554718,1732720044086,-254.11647906,0.00024657,3]
[343554719,1732720044108,-500.0,0.00024657,3]
[343554720,1732720044130,-500.0,0.00024657,3]
[343554721,1732720044151,-500.0,0.00024657,3]
[343554722,1732720044172,-500.0,0.00024657,3]
[343554723,1732720044193,-500.0,0.00024657,3]
[343554724,1732720044214,-500.0,0.00024657,3]
[343554725,1732720044236,-500.0,0.00024657,3]
[343554726,1732720044258,-500.0,0.00024657,3]
[343554727,1732720044279,-500.0,0.00024657,3]
[343554728,1732720044401,-500.0,0.00024657,3]
[343554729,1732720044424,-500.0,0.00024657,3]
[343554730,1732720044445,-610.12,0.00024657,3]
[343554731,1732720044465,-500.0,0.00024657,3]
[343554732,1732720044487,-500.0,0.00024657,3]
[343554733,1732720044508,-500.0,0.00024657,3]
[343554734,1732720044529,-500.0,0.00024657,3]
[343554735,1732720044550,-500.0,0.00024657,3]
[343554736,1732720044571,-500.0,0.00024657,3]
[343554737,1732720044591,-500.0,0.00024657,3]
[343554738,1732720044613,-500.0,0.00024657,3]
[343554739,1732720044635,-195.88025,0.0002515,2]
[343554740,1732720044659,-709.93613648,0.0002529,2]
[343554741,1732720044679,-730.58269632,0.00025352,2]
[343554742,1732720044699,-195.88025,0.00025374,2]
[343554743,1732720044720,-195.88025,0.00025599,2]
[343554744,1732720044746,-168.183,0.00025626,10]
[343554745,1732720044766,-204.0,0.00025775,2]
[343554746,1732720044786,-195.88025,0.00025823,2]
[343554747,1732720044807,-709.93613648,0.00026023,2]
[343554748,1732720044828,-1603.23096965,0.0002611,2]
[343554749,1732720044849,-730.58269632,0.00026146,2]
[343554750,1732720044869,-266466.84992126,0.000263,2]
[343554751,1732720054107,-500.0,0.00024656,2]
[343554752,1732720054134,-187.32554902,0.00024656,2]
[343554753,1732720054159,-500.0,0.00024656,2]
[343554754,1732720054186,-253.71465418,0.00024656,2]
[343554755,1732720054213,-500.0,0.00024656,2]
[343554756,1732720054239,-352.76500726,0.00024656,2]
[343554757,1732720054271,-286.22431675,0.00024656,2]
[343554758,1732720054297,-200.0,0.00024656,2]
[343554759,1732720054330,-372.19,0.00024657,3]
[343554760,1732720054354,-500.0,0.00024657,3]
[343554761,1732720054378,-500.0,0.00024657,3]
[343554762,1732720054402,-500.0,0.00024657,3]
[343554763,1732720054425,-500.0,0.00024657,3]
[343554764,1732720054449,-500.0,0.00024657,3]
[343554765,1732720054472,-500.0,0.00024657,3]
[343554766,1732720054495,-500.0,0.00024657,3]
[343554767,1732720054521,-500.0,0.00024657,3]
[343554768,1732720054543,-500.0,0.00024657,3]
[343554769,1732720054565,-500.0,0.00024657,3]
[343554770,1732720054586,-500.0,0.00024657,3]
[343554771,1732720054607,-162.7608409,0.00024657,3]
[343554772,1732720054735,-500.0,0.00024657,3]
[343554773,1732720054761,-100071.63425089,0.000263,2]
[343554774,1732720114109,-300.0,0.00024656,2]
[343554775,1732720114284,-300.0,0.00024656,2]
[343554776,1732720114310,-626.00636699,0.00024657,3]
[343554777,1732720114337,-500.0,0.00024657,3]
[343554778,1732720114365,-500.0,0.00024657,3]
[343554779,1732720114393,-500.0,0.00024657,3]
[343554780,1732720114419,-500.0,0.00024657,3]
[343554781,1732720114445,-500.0,0.00024657,3]
[343554782,1732720114471,-500.0,0.00024657,3]
[343554783,1732720114497,-500.0,0.00024657,3]
[343554784,1732720114522,-500.0,0.00024657,3]
[343554785,1732720114549,-500.0,0.00024657,3]
[343554786,1732720114577,-500.0,0.00024657,3]
[343554787,1732720114605,-500.0,0.00024657,3]
[343554788,1732720114631,-500.0,0.00024657,3]
[343554789,1732720114657,-500.0,0.00024657,3]
[343554790,1732720114687,-500.0,0.00024657,3]
[343554791,1732720114712,-500.0,0.00024657,3]
[343554792,1732720114738,-500.0,0.00024657,3]
[343554793,1732720114765,-500.0,0.00024657,3]
[343554794,1732720114792,-500.0,0.00024657,3]
[343554795,1732720114818,-179.54126863,0.00024657,3]
[343554796,1732720114844,-500.0,0.00024657,3]
[343554797,1732720114869,-500.0,0.00024657,3]
[343554798,1732720114895,-500.0,0.00024657,3]
[343554799,1732720114923,-500.0,0.00024657,3]
[343554800,1732720114950,-500.0,0.00024657,3]
[343554801,1732720114976,-500.0,0.00024657,3]
[343554802,1732720115003,-500.0,0.00024657,3]
[343554803,1732720115030,-404.75462059,0.00024657,3]
[343554804,1732720115056,-500.0,0.00024657,3]
[343554805,1732720115096,-500.0,0.00024657,3]
[343554806,1732720115123,-500.0,0.00024657,3]
[343554807,1732720115148,-500.0,0.00024657,3]
[343554808,1732720115173,-500.0,0.00024657,3]
[343554809,1732720115198,-500.0,0.00024657,3]
[343554810,1732720115223,-419.62084034,0.00024657,3]
[343554811,1732720115248,-500.0,0.00024657,3]
[343554812,1732720115273,-411.72661507,0.00024657,3]
[343554813,1732720115300,-500.0,0.00024657,3]
[343554814,1732720115330,-500.0,0.00024657,3]
[343554815,1732720115359,-500.0,0.00024657,3]
[343554816,1732720115388,-500.0,0.00024657,3]
[343554817,1732720115413,-500.0,0.00024657,3]
[343554818,1732720115439,-500.0,0.00024657,3]
[343554819,1732720115466,-500.0,0.00024657,3]
[343554820,1732720115493,-500.0,0.00024657,3]
[343554821,1732720115519,-500.0,0.00024657,3]
[343554822,1732720115544,-500.0,0.00024657,3]
[343554823,1732720115569,-500.0,0.00024657,3]
[343554824,1732720115598,-500.0,0.00024657,3]
[343554825,1732720115625,-500.0,0.00024657,3]
[343554826,1732720115650,-500.0,0.00024657,3]
[343554827,1732720115677,-500.0,0.00024657,3]
[343554828,1732720115703,-500.0,0.00024657,3]
[343554829,1732720115729,-500.0,0.00024657,3]
[343554830,1732720115759,-278.30236172,0.00024657,3]
[343554831,1732720115785,-218.95333721,0.00024657,3]
[343554832,1732720118202,163.189441,0.00013973,2]
[343554833,1732720118454,163.189441,0.00024224,2]
[343554834,1732720124476,500.0,0.00024657,3]
[343554835,1732720124601,582.83719578,0.00024657,3]
[343554836,1732720130424,500.0,0.00024657,3]
[343554837,1732720130708,500.0,0.00024657,3]
[343554838,1732720132885,500.0,0.00024657,3]
[343554839,1732720139554,500.0,0.00024657,3]
[343554840,1732720142961,502.08790004,0.00024657,3]
[343554841,1732720146680,-170.79878,0.00025838,2]
[343554842,1732720152555,302.72757545,0.00025709,2]
[343554843,1732720152624,302.72757545,0.00025966,2]
[343554844,1732720154686,500.0,0.00024657,3]
[343554845,1732720158760,589.08713387,0.00024657,3]
[343554846,1732720159852,500.0,0.00024657,3]
[343554847,1732720171303,500.0,0.00024657,3]
[343554848,1732720173987,500.0,0.00024657,3]
[343554849,1732720174127,183.265105,0.00024557,2]
[343554850,1732720176187,482.55303851,0.00024657,3]
[343554851,1732720177157,500.0,0.00024657,3]
[343554852,1732720177385,386.04,0.00024657,3]
[343554853,1732720181247,500.0,0.00024657,3]
[343554854,1732720181518,500.0,0.00024657,3]
[343554855,1732720181793,538.18889304,0.00024657,3]
[343554856,1732720183346,500.0,0.00024657,3]
[343554857,1732720185953,5000.0,0.00024656,2]
[343554858,1732720186207,5000.0,0.00024656,2]
[343554917,1732720235888,500.0,0.00024657,3]
[343554918,1732720236570,500.0,0.00024657,3]
[343554919,1732720236980,500.0,0.00024657,3]
[343554920,1732720237250,500.0,0.00024657,3]
[343554921,1732720237509,500.0,0.00024657,3]
[343554932,1732720237793,500.0,0.00024657,3]
[343554951,1732720238061,500.0,0.00024657,3]
[343554952,1732720238342,500.0,0.00024657,3]
[343554953,1732720238605,500.0,0.00024657,3]
[343554958,1732720238722,-1525.3890668,0.00026123,11]
[343554959,1732720238733,-162.37574818,0.00026223,2]
[343554960,1732720238745,-767493.64064385,0.000263,2]
[343554961,1732720238756,-300.0,0.00026848,2]
[343554962,1732720238766,-300.0,0.00026848,2]
[343554963,1732720238776,-204.197094,0.00026849,2]
[343554964,1732720238789,-24900.0,0.00026849,2]
[343554965,1732720238798,-153.0,0.00027224,2]
[343554966,1732720238808,-204.0,0.00027386,2]
[343554967,1732720238818,-500.0,0.00027397,3]
[343554968,1732720238827,-541.50417437,0.00027397,3]
[343554969,1732720238836,-1002.01935605,0.00027473,2]
[343554970,1732720238846,-310.03174298,0.00027573,2]
[343554971,1732720238855,-204.0,0.00027616,2]
[343554972,1732720238876,-1002.01935603,0.00027999,2]
[343554973,1732720238887,-2768.811702,0.0002806,2]
[343554974,1732720238898,-369.758682,0.0002806,2]
[343554975,1732720238908,-172.062861,0.0002806,2]
[343554976,1732720238918,-1556.32,0.000281,2]
[343554977,1732720238929,-2377.0,0.00028131,2]
[343554978,1732720238940,-1110.093,0.00028131,2]
[343554979,1732720238950,-337.44528694,0.000282,2]
[343554980,1732720238962,-911.41091872,0.000282,2]
[343554981,1732720238974,-261.3,0.000284,2]
[343554982,1732720238985,-2768.811702,0.0002841,2]
[343554983,1732720238998,-369.758682,0.0002841,2]
[343554984,1732720239008,-1002.01935603,0.00028524,2]
[343554985,1732720239019,-172.062861,0.00028527,2]
[343554986,1732720239030,-2768.811702,0.00028761,2]
[343554987,1732720239041,-369.758682,0.00028761,2]
[343554988,1732720239052,-500.0,0.00028767,2]
[343554989,1732720239062,-275.5,0.000289,2]
[343554990,1732720239074,-169.484137,0.00028964,2]
[343554991,1732720239084,-172.062861,0.00028995,2]
[343554992,1732720239094,-204.0,0.00028997,2]
[343554993,1732720239105,-420.0,0.0002903,2]
[343554994,1732720239115,-1002.01935603,0.0002905,2]
[343554995,1732720239126,-150.571,0.00029079,2]
[343554996,1732720239136,-531.0,0.00029079,2]
[343554997,1732720239146,-2768.811702,0.00029112,2]
[343554998,1732720239157,-369.758682,0.00029112,2]
[343554999,1732720239167,-172.062861,0.00029463,2]
[343555000,1732720239178,-2768.811702,0.00029463,2]
[343555001,1732720239188,-369.758682,0.00029463,2]
[343555002,1732720239198,-420.0,0.00029533,2]
[343555003,1732720239208,-500.0,0.00029573,11]
[343555004,1732720239219,-1002.01935603,0.00029575,2]
[343555005,1732720239229,-153.29,0.000297,31]
[343555006,1732720239240,-153.29,0.000297,31]
[343555007,1732720239250,-153.29,0.000297,31]
[343555008,1732720239261,-500.0,0.00029739,11]
[343555009,1732720239271,-3000.0,0.000298,2]
[343555010,1732720239281,-3000.0,0.0002981,2]
[343555011,1732720239291,-157.05,0.0002981,120]
[343555012,1732720239301,-292.23307856,0.0002981,2]
[343555013,1732720239311,-3000.0,0.0002982,2]
[343555014,1732720239322,-3000.0,0.0002983,2]
[343555015,1732720239332,-3000.0,0.0002984,2]
[343555016,1732720239343,-3000.0,0.0002985,2]
[343555017,1732720239353,-3000.0,0.0002986,2]
[343555018,1732720239363,-3000.0,0.0002987,2]
[343555019,1732720239373,-500.0,0.00029873,5]
[343555020,1732720239384,-3000.0,0.0002988,2]
[343555021,1732720239394,-3000.0,0.0002989,2]
[343555022,1732720239404,-3000.0,0.000299,2]
[343555023,1732720239414,-300.0,0.000299,2]
[343555024,1732720239426,-222000.0,0.000299,2]
[343555025,1732720239451,-3000.0,0.0002991,2]
[343555026,1732720239462,-3000.0,0.0002992,2]
[343555027,1732720239472,-5097.380968,0.0002993,2]
[343555028,1732720239482,-3200.0,0.00029938,2]
[343555029,1732720239493,-500.0,0.00029938,2]
[343555030,1732720239503,-151.0,0.00029938,2]
[343555031,1732720239514,-500.0,0.00029973,5]
[343555032,1732720239524,-160.09582971,0.00029973,5]
[343555033,1732720239534,-500.0,0.00029973,5]
[343555034,1732720239544,-506.41494876,0.00029973,5]
[343555035,1732720239554,-500.0,0.00029973,5]
[343555036,1732720239564,-510.19432561,0.00029973,5]
[343555038,1732720239574,-600.0,0.00029984,2]
[343555039,1732720239584,-160.05085181,0.00029999,2]
[343555041,1732720239595,-187.05005219,0.00029999,2]
[343555043,1732720239605,-194.1707124,0.00029999,2]
[343555045,1732720239615,-500.0,0.00029999,2]
[343555047,1732720239625,-378.36928437,0.00029999,2]
[343555048,1732720239635,-164.85849905,0.00029999,2]
[343555049,1732720239644,-173.42625,0.0003,2]
[343555050,1732720239654,-187.878,0.0003,2]
[343555051,1732720239664,-603.74131446,0.0003,2]
[343555053,1732720239674,-151.0,0.0003,120]
[343555055,1732720239683,-151.0,0.0003,120]
[343555057,1732720239694,-191.49075,0.0003,2]
[343555059,1732720239705,-3000.0,0.0003,2]
[343555061,1732720239717,-500.0,0.0003,5]
[343555062,1732720239727,-58278.93596071,0.0003,2]
[343555064,1732720239926,500.0,0.00024657,3]
[343555066,1732720241288,-79534.82959266,0.0003,2]
[343555067,1732720241321,500.0,0.00024657,3]
[343555068,1732720241353,500.0,0.00024657,3]
[343555069,1732720241385,218.65229393,0.00024657,3]
[343555070,1732720241417,500.0,0.00024657,3]
[343555071,1732720241702,-12154.068291,0.0003,2]
[343555072,1732720241737,500.0,0.00024657,3]
[343555073,1732720241919,500.0,0.00024657,3]
[343555074,1732720241954,500.0,0.00024657,3]
[343555075,1732720241985,500.0,0.00024657,3]
[343555076,1732720242016,431.47,0.00024657,3]
[343555077,1732720242050,500.0,0.00024657,3]
[343555078,1732720242085,500.0,0.00024657,3]
[343555079,1732720242119,536.22453223,0.00024657,3]
[343555080,1732720242150,500.0,0.00024657,3]
[343555082,1732720242506,500.0,0.00024657,3]
[343555099,1732720242770,500.0,0.00024657,3]
[343555105,1732720243041,-14394.50469647,0.00029363,2]
[343555107,1732720243051,-1470.3,0.0002999,10]
[343555110,1732720243061,-17984.79530346,0.0003,2]
[343555117,1732720243126,-82047.37085217,0.0003,2]
[343555120,1732720243136,-253.0,0.0003,2]
[343555122,1732720243146,-200.0,0.0003003,27]
[343555124,1732720243155,-1002.01935603,0.00030101,2]
[343555126,1732720243164,-500.0,0.00030136,4]
[343555128,1732720243174,-254.58160536,0.00030137,2]
[343555130,1732720243186,-3691.215521,0.00030137,120]
[343555132,1732720243196,-404.27529608,0.00030137,60]
[343555134,1732720243205,-292.23307852,0.00030144,2]
[343555136,1732720243215,-600.0,0.00030296,2]
[343555138,1732720243225,-151.19004701,0.00030387,2]
[343555140,1732720243235,-1000.0,0.00030421,5]
[343555142,1732720243245,-2500.0,0.00030427,3]
[343555144,1732720243254,-2500.0,0.00030436,3]
[343555146,1732720243264,-2500.0,0.00030444,3]
[343555148,1732720243274,-2500.0,0.00030453,3]
[343555150,1732720243283,-2500.0,0.00030462,3]
[343555152,1732720243295,-292.23307852,0.00030478,2]
[343555155,1732720243304,-500.0,0.00030519,2]
[343555157,1732720243314,-500.0,0.00030521,5]
[343555158,1732720243323,-805.31941209,0.00030521,5]
[343555159,1732720243333,-500.0,0.00030587,2]
[343555161,1732720243343,-600.0,0.00030608,2]
[343555163,1732720243353,-1002.01935603,0.00030626,2]
[343555165,1732720243363,-857.6075034,0.00030656,2]
[343555167,1732720243373,-150.0,0.00030658,2]
[343555169,1732720243383,-150.0,0.00030788,2]
[343555170,1732720243392,-150.0,0.000308,2]
[343555172,1732720243402,-292.23307852,0.00030812,2]
[343555174,1732720243411,-450.499273,0.0003086,30]
[343555176,1732720243422,-1000.0,0.00030885,2]
[343555178,1732720243435,-300.0,0.000309,4]
[343555180,1732720243444,-1000.0,0.00030919,2]
[343555182,1732720243454,-600.0,0.00030921,2]
[343555184,1732720243464,-1000.0,0.00030962,2]
[343555186,1732720243473,-275.5,0.00031,4]
[343555188,1732720243483,-798.98421488,0.00031,2]
[343555190,1732720243493,-500.0,0.00031073,5]
[343555192,1732720243502,-6365.02707165,0.00031097,2]
[343555194,1732720243512,-1000.0,0.00031099,2]
[343555196,1732720243521,-500.0,0.00031111,2]
[343555198,1732720243531,-427.02483954,0.00031115,2]
[343555203,1732720243564,500.0,0.00024657,3]
[343555205,1732720243577,-72.97516046,0.00031115,2]
[343555207,1732720243587,-150.0,0.00031128,2]
[343555209,1732720243597,-1373.98836283,0.00031131,2]
[343555212,1732720243608,-1003.01163717,0.00031131,2]
[343555214,1732720243618,-1104.0,0.00031131,2]
[343555216,1732720243628,-666.0,0.00031133,2]
[343555218,1732720243638,-351.133429,0.00031143,7]
[343555220,1732720243647,-150.17,0.00031143,7]
[343555222,1732720243657,-150.17,0.00031143,7]
[343555224,1732720243666,-150.17,0.00031143,7]
[343555226,1732720243676,-299.89991911,0.00031143,7]
[343555228,1732720243689,-500.0,0.00031143,7]
[343555230,1732720243699,-300.25178377,0.00031143,7]
[343555232,1732720243710,-500.0,0.00031143,7]
[343555234,1732720243719,-150.19,0.00031143,7]
[343555236,1732720243729,-150.17,0.00031143,7]
[343555238,1732720243738,-150.17,0.00031143,2]
[343555240,1732720243748,-500.0,0.00031143,7]
[343555242,1732720243757,-500.0,0.00031143,7]
[343555244,1732720243767,-500.0,0.00031143,7]
[343555246,1732720243777,-500.0,0.00031143,7]
[343555248,1732720243790,-150.17,0.00031143,2]
[343555250,1732720243800,-150.17,0.00031143,7]
[343555252,1732720243811,-150.17,0.00031143,7]
[343555255,1732720243820,-1009.30388336,0.00031146,4]
[343555257,1732720243830,-292.23307852,0.00031146,2]
[343555259,1732720243840,-1002.01935603,0.00031152,2]
[343555261,1732720243849,-1000.0,0.00031169,2]
[343555263,1732720243858,-500.0,0.00031218,2]
[343555265,1732720243868,-150.01,0.00031232,2]
[343555267,1732720243877,-9285.14693311,0.00031232,2]
[343555286,1732720244048,-108.32158471,0.00031232,2]
[343555288,1732720244058,-151.0,0.00031233,7]
[343555290,1732720244067,-185.393897,0.00031233,7]
[343555292,1732720244077,-351.133429,0.00031233,7]
[343555294,1732720244086,-351.133429,0.00031233,7]
[343555296,1732720244095,-351.133429,0.00031233,7]
[343555298,1732720244104,-351.133429,0.00031233,7]
[343555300,1732720244113,-351.133429,0.00031233,7]
[343555302,1732720244122,-351.133429,0.00031233,7]
[343555304,1732720244132,-351.133429,0.00031233,7]
[343555306,1732720244141,-351.133429,0.00031233,7]
[343555308,1732720244150,-351.133429,0.00031233,7]
[343555310,1732720244159,-351.133429,0.00031233,7]
[343555312,1732720244168,-351.133429,0.00031233,7]
[343555314,1732720244178,-351.133429,0.00031233,7]
[343555316,1732720244195,-351.133429,0.00031233,7]
[343555318,1732720244205,-351.133429,0.00031233,7]
[343555320,1732720244214,-351.133429,0.00031233,7]
[343555322,1732720244223,-351.133427,0.00031233,7]
[343555324,1732720244233,-151.0,0.00031233,7]
[343555326,1732720244242,-236.131432,0.00031233,7]
[343555328,1732720244252,-615.63233864,0.00031233,2]
[343555330,1732720244261,-151.0,0.00031242,7]
[343555332,1732720244270,-151.0,0.00031242,7]
[343555334,1732720244279,-151.0,0.00031242,7]
[343555336,1732720244288,-151.0,0.00031242,7]
[343555338,1732720244297,-151.0,0.00031242,7]
[343555340,1732720244307,-151.0,0.00031242,7]
[343555342,1732720244316,-151.0,0.00031242,7]
[343555344,1732720244326,-151.0,0.00031242,7]
[343555346,1732720244335,-151.0,0.00031242,7]
[343555348,1732720244345,-151.0,0.00031242,7]
[343555350,1732720244354,-151.0,0.00031242,7]
[343555352,1732720244363,-151.0,0.00031242,7]
[343555354,1732720244373,-151.0,0.00031242,7]
[343555356,1732720244382,-151.0,0.00031242,7]
[343555358,1732720244391,-151.0,0.00031242,7]
[343555360,1732720244401,-151.0,0.00031242,7]
[343555362,1732720244411,-151.0,0.00031242,7]
[343555364,1732720244420,-151.0,0.00031242,7]
[343555366,1732720244429,-243.854703,0.00031242,7]
[343555368,1732720244446,-151.0,0.00031242,7]
[343555370,1732720244456,-151.0,0.00031242,7]
[343555372,1732720244466,-151.0,0.00031242,7]
[343555374,1732720244475,-151.0,0.00031242,7]
[343555376,1732720244485,-151.0,0.00031242,7]
[343555378,1732720244494,-151.0,0.00031242,7]
[343555380,1732720244504,-151.0,0.00031242,7]
[343555382,1732720244515,-207.576488,0.00031242,7]
[343555384,1732720244524,-1147.292671,0.00031242,7]
[343555386,1732720244534,-1147.292671,0.00031242,7]
[343555388,1732720244544,-1147.292671,0.00031242,7]
[343555390,1732720244554,-1147.292671,0.00031242,7]
[343555392,1732720244563,-1147.292671,0.00031242,7]
[343555394,1732720244573,-1147.292671,0.00031242,7]
[343555396,1732720244582,-1147.292671,0.00031242,7]
[343555398,1732720244592,-1147.292671,0.00031242,7]
[343555400,1732720244601,-1147.292671,0.00031242,7]
[343555402,1732720244611,-1147.292671,0.00031242,7]
[343555404,1732720244621,-1147.292671,0.00031242,7]
[343555406,1732720244631,-1147.292671,0.00031242,7]
[343555409,1732720244640,-1147.292671,0.00031242,7]
[343555411,1732720244650,-1147.292671,0.00031242,7]
[343555413,1732720244660,-1147.292671,0.00031242,7]
[343555415,1732720244670,-1147.292671,0.00031242,7]
[343555417,1732720244680,-1147.292671,0.00031242,7]
[343555419,1732720244692,-1147.292671,0.00031242,7]
[343555421,1732720244706,-1147.292671,0.00031242,7]
[343555423,1732720244715,-1147.292673,0.00031242,7]
[343555425,1732720244725,-268.229052,0.00031242,7]
[343555427,1732720244735,-268.229052,0.00031242,7]
[343555429,1732720244746,-268.229052,0.00031242,7]
[343555431,1732720244756,-268.229052,0.00031242,7]
[343555433,1732720244765,-268.229052,0.00031242,7]
[343555435,1732720244774,-268.229052,0.00031242,7]
[343555437,1732720244784,-268.229052,0.00031242,7]
[343555439,1732720244794,-268.229052,0.00031242,7]